Cogmind - Beta 10.1 @@@ ROGUE MODE // 2020.10.24 @ 14:47:03 Player: blelm Result: Self-destructed Performance ------------- Evolutions (2) 1000 Regions Visited (5) 1000 Robots Destroyed (71) 355 Value Destroyed (1508) 1508 Prototype IDs (23) 460 Alien Tech Used (0) 0 Bonus (349) 349 TOTAL SCORE: 4672 Bonus ------- High Alert Combat Kills 49 Aligned with FarCom 300 Cogmind --------- Core Integrity 357/550 Matter 82/300 Energy 134/140 System Corruption 0% Temperature Cool (0) Movement Treading (190) Ox1 Location -8/Materials Parts ------- > --- POWER (1) -------- Light Deuterium Engine > --- PROPULSION (3) --- Armored Treads Armored Treads > --- UTILITY (4) ------ Large Storage Unit Large Storage Unit Large Storage Unit > --- WEAPON (3) ------- Heavy Assault Rifle Heavy Assault Rifle > --- INVENTORY (22) --- Light Deuterium Engine Light Deuterium Engine Light Treads Light Treads Armored Treads Medium Storage Unit Large Storage Unit Superbattery (2000) High-capacity Matter Pod (200) Advanced Terrain Scanner Advanced Targeting Computer Advanced Targeting Computer Improved Light Armor Plating Reactive Plating Reactive Plating Hacking Suite System Shield Grenade Launcher Rocket Launcher Axe Peak State ------------ > --- POWER ------------ Light Deuterium Engine > --- PROPULSION ------- Light Treads Armored Treads Armored Treads > --- UTILITY ---------- Large Storage Unit Large Storage Unit Large Storage Unit Hardened Medium Armor Plating > --- WEAPON ----------- Heavy Assault Rifle Heavy Assault Rifle Axe > --- INVENTORY -------- Light Deuterium Engine Light Deuterium Engine Light Treads Light Treads Armored Treads Medium Storage Unit Large Storage Unit Superbattery High-capacity Matter Pod Advanced Terrain Scanner Advanced Targeting Computer Advanced Targeting Computer Improved Light Armor Plating Reactive Plating Reactive Plating Hacking Suite System Shield Heavy Assault Rifle Heavy Assault Rifle Heavy Assault Rifle Grenade Launcher Rocket Launcher [Rating: 28] Favorites ----------- Power Ion Engine Engine Ion Engine Power Core Light Nuclear Core Propulsion Light Treads Treads Light Treads Leg Aluminum Leg Wheel Wheel Utility Large Storage Unit Device Disposable Heat Sink Storage Large Storage Unit Protection Hardened Medium Armor Plating Weapon Heavy Assault Rifle Energy Gun EM Pulse Gun Ballistic Gun Heavy Assault Rifle Launcher Grenade Launcher Slashing Weapon Axe Build | -11 -10 -10 -10 -9 -8 ------- Run | Scr Mat Min Exi Min Mat Slots Evolved 4 | . . . . . 4 Power . | . . . . . . Propulsion 1 | . . . . . 1 Utility 2 | . . . . . 2 Weapon 1 | . . . . . 1 Parts Attached 54 | 3 9 3 1 4 34 Power 6 | . 2 . . 2 2 Engine 5 | . 2 . . 2 1 Core 1 | . . . . . 1 Reactor . | . . . . . . Propulsion 11 | 3 1 . . . 7 Treads 10 | 2 1 . . . 7 Leg . | . . . . . . Wheel 1 | 1 . . . . . Hover . | . . . . . . Flight . | . . . . . . Utility 6 | . 2 . 1 . 3 Device 1 | . 1 . . . . Storage 3 | . 1 . 1 . 1 Processor . | . . . . . . Hackware . | . . . . . . Protection 2 | . . . . . 2 Artifact . | . . . . . . Weapon 31 | . 4 3 . 2 22 Energy Gun . | . . . . . . Energy Cannon . | . . . . . . Ballistic Gun 20 | . 4 1 . 1 14 Ballistic Cannon . | . . . . . . Launcher 8 | . . 2 . 1 5 Special Weapon . | . . . . . . Impact Weapon . | . . . . . . Slashing Weapon 3 | . . . . . 3 Piercing Weapon . | . . . . . . Special Melee Weapon . | . . . . . . Unidentified Prototypes . | . . . . . . Parts Lost 8 | . 2 . . 1 5 Power 2 | . 1 . . 1 . Propulsion 1 | . . . . . 1 Utility 1 | . . . . . 1 Weapon 4 | . 1 . . . 3 Highest Loss Streak 5 | . 2 . . 1 5 Average Slot Usage (%) 99 | . 98 100 100 100 99 Engine 10 | . 13 14 14 14 8 Treads 26 | . 24 28 28 28 26 Device 5 | . 13 14 12 . . Storage 22 | . 14 14 16 28 27 Protection 4 | . . . . . 8 Ballistic Gun 22 | . 27 19 14 15 23 Launcher 3 | . . 8 14 12 1 Naked Turns . | . . . . . . Heaviest Build 76 | 13 28 28 43 48 76 Greatest Support 60 | 20 40 40 40 40 60 Greatest Overweight (x) 1 | 1 1 . 1 1 1 Average Overweight (x) . | . . . . 1 1 Largest Inventory Capacity 22 | 6 10 10 16 16 22 Average Capacity 16 | 6 6 10 10 16 21 Most Carried 22 | 6 8 9 12 16 22 Average Carried 14 | 3 6 8 9 13 20 Final Capacity 22 | 6 10 10 16 16 22 Final Carried 20 | 3 8 9 12 16 20 Class Distribution -------------------- 48% | Mutant 34% | Hauler-Skirmisher 17% | Hauler-Mutant Dominant Class ---------------- Mutant | -10/Materials Mutant | -10/Mines Mutant | -10/Exiles Mutant | -9/Mines Hauler-Skirmisher | -8/Materials Resources | -11 -10 -10 -10 -9 -8 ----------- Run | Scr Mat Min Exi Min Mat Matter Collected 1661 | 222 282 93 . 260 804 Remotely . | . . . . . . Salvage Created 1805 | . 488 24 . 109 1184 Parts 152 | . 40 8 . 16 88 Haulers Intercepted 4 | . 2 . . . 2 Recyclers Shooed 1 | . . . . . 1 Parts Field Recycled . | . . . . . . Retrieved Matter . | . . . . . . Parts Self-Destructed . | . . . . . . Prevented . | . . . . . . Kills | -11 -10 -10 -10 -9 -8 ------- Run | Scr Mat Min Exi Min Mat Combat Hostiles Destroyed 55 | . 11 5 . 8 31 Guns 30 | . 11 . . 1 18 AOE 25 | . . 5 . 7 13 Classes Destroyed 11 | . 5 . . 2 4 Worker 3 | . 1 . . . 2 Builder 3 | . . . . . 3 Tunneler 3 | . . . . 1 2 Hauler 4 | . 2 . . . 2 Recycler 1 | . . . . . 1 Watcher 2 | . 2 . . . . Swarmer 31 | . 5 5 . 6 15 Grunt 15 | . 6 . . 1 8 Brawler 1 | . . . . 1 . Sentry 7 | . . . . . 7 Hunter 1 | . . . . . 1 Best Kill Streak 6 | . 5 3 . 4 6 Combat Bots Only 5 | . 4 3 . 4 5 Max Kills in Single Turn 3 | . 2 2 . 3 3 Gunslinging . | . . . . . . Exploded 3 | . . 2 . 3 3 Melee . | . . . . . . Uniques/NPCs Destroyed . | . . . . . . Combat | -11 -10 -10 -10 -9 -8 -------- Run | Scr Mat Min Exi Min Mat Damage Taken 2475 | . 486 54 . 200 1735 Core 313 | . 102 . . 18 193 Absorbed by Shields . | . . . . . . Core Remaining (%) 76 | 100 . . . 52 . Volleys Fired 133 | . 35 5 . 13 80 Largest 3 | . 2 1 . 2 3 Hottest 69 | . 60 30 . 46 69 Shots Fired 300 | . 70 5 . 15 210 Gun 273 | . 70 . . 4 199 Cannon . | . . . . . . Launcher 27 | . . 5 . 11 11 Special . | . . . . . . Kinetic 272 | . 69 . . 4 199 Thermal . | . . . . . . Explosive 27 | . . 5 . 11 11 Electromagnetic 1 | . 1 . . . . Robot Hit Streak 19 | . 7 . . 14 19 Robot Miss Streak 3 | . 3 . . 1 3 Penetration Max . | . . . . . . Secondary Targets 2 | . 2 . . . . Max Gunslinging Chain 1 | . 1 . . . . Shots Hit Robots 199 | . 44 . . 8 147 Core Hits 104 | . 20 5 . 11 68 Critical Hits 2 | . . . . . 2 Critical Kills . | . . . . . . Critical Parts Destroyed 2 | . . . . . 2 Melee Attacks 8 | . . . . . 8 Impact . | . . . . . . Slashing 8 | . . . . . 8 Piercing . | . . . . . . Sneak Attacks 3 | . . . . . 3 Combat Hostiles . | . . . . . . Follow-up Attacks . | . . . . . . Damage Inflicted 5226 | . 678 417 . 603 3528 Guns 2545 | . 662 . . 46 1837 Cannons . | . . . . . . Explosions 2354 | . . 417 . 557 1380 Melee 302 | . . . . . 302 Ramming 25 | . 16 . . . 9 Kinetic 2527 | . 644 . . 46 1837 Thermal . | . . . . . . Explosive 2354 | . . 417 . 557 1380 Electromagnetic 18 | . 18 . . . . Impact . | . . . . . . Slashing 302 | . . . . . 302 Piercing . | . . . . . . Highest Corruption . | . . . . . . Average Corruption . | . . . . . . Corruption Purged . | . . . . . . Overload Shots . | . . . . . . Overflow Damage 64 | . . 19 . 38 7 Projectiles . | . . . . . . Explosions 64 | . . 19 . 38 7 Melee . | . . . . . . Knockbacks . | . . . . . . Impact . | . . . . . . Kinetic . | . . . . . . Secondary . | . . . . . . Self-Inflicted Damage 120 | . 8 . . 45 67 Shots 4 | . . . . 2 2 Rammed 5 | . 1 . . . 4 Targets Rammed 5 | . 1 . . . 4 Kicked . | . . . . . . Crushed . | . . . . . . Highest Temperature 173 | . 15 . . 1 173 Average Temperature 37 | . 4 . . 1 41 Received Heat Transfer 624 | . 177 . . 24 423 Siege Activations . | . . . . . . Robots Corrupted . | . . . . . . Combat Hostiles . | . . . . . . Parts Fried . | . . . . . . Impact Corruptions . | . . . . . . Robots Melted . | . . . . . . Combat Hostiles . | . . . . . . Parts Melted . | . . . . . . Heat Transferred . | . . . . . . Parts Sabotaged . | . . . . . . Parts Stolen . | . . . . . . Parts Stripped . | . . . . . . Power Chain Reactions . | . . . . . . Missiles Intercepted . | . . . . . . Alert | -11 -10 -10 -10 -9 -8 ------- Run | Scr Mat Min Exi Min Mat Peak Influence 667 | . 157 120 . 215 667 Initial 5 | . . . . . 5 Average 166 | . 53 86 . 120 236 Maximum Alert Level 2 | . . . . 1 2 Low Security (%) 64 | 100 100 100 . 91 40 Level 1 24 | . . . . 8 40 Level 2 10 | . . . . . 19 Level 3 . | . . . . . . Level 4 . | . . . . . . Level 5 . | . . . . . . High Security . | . . . . . . Max Security . | . . . . . . Squads Dispatched 6 | . 3 . . . 3 Investigation 1 | . 1 . . . . Extermination . | . . . . . . Reinforcement 5 | . 2 . . . 3 Assault . | . . . . . . Garrison . | . . . . . . Intercept . | . . . . . . Construction Impeded 1 | . . . . . 1 Haulers Reinforced . | . . . . . . Stealth | -11 -10 -10 -10 -9 -8 --------- Run | Scr Mat Min Exi Min Mat Distress Signals 6 | . 2 . . . 4 Communications Jammed . | . . . . . . Distress Signals . | . . . . . . Times Spotted 94 | . 26 5 2 9 52 Peak Tracking Total 7 | . 4 3 2 4 7 Tactical Retreats 7 | . 2 1 . . 4 Traps | -11 -10 -10 -10 -9 -8 ------- Run | Scr Mat Min Exi Min Mat Traps Triggered 1 | . 1 . . . . Indirectly . | . . . . . . Trap Hack Attempts . | . . . . . . Triggered . | . . . . . . Disarmed . | . . . . . . Reprogrammed . | . . . . . . Reused . | . . . . . . Traps Extracted . | . . . . . . Installed . | . . . . . . Triggered . | . . . . . . Exploded 1 | . . . 1 . . Machines | -11 -10 -10 -10 -9 -8 ---------- Run | Scr Mat Min Exi Min Mat Machines Disabled 8 | . . . . 2 6 Max in Single Turn 2 | . . . . 1 2 Machines Sabotaged . | . . . . . . Garrisons Compromised . | . . . . . . Overloaded Fab Kills . | . . . . . . Fab Network Shutdowns . | . . . . . . Hacking | -11 -10 -10 -10 -9 -8 --------- Run | Scr Mat Min Exi Min Mat Machines Accessed 17 | . 9 . 2 . 6 Terminals 10 | . 6 . . . 4 Fabricators . | . . . . . . Repair Stations 2 | . 1 . . . 1 Recycling Units 3 | . 2 . . . 1 Scanalyzers . | . . . . . . Garrison Access . | . . . . . . Total Hacks 45 | . 25 . 2 . 18 Successful 30 | . 16 . 2 . 12 Failed 15 | . 9 . . . 6 Catastrophic 1 | . 1 . . . . Database Lockouts . | . . . . . . Manual 31 | . 20 . 1 . 10 Terminals 33 | . 20 . . . 13 Fabricators . | . . . . . . Repair Stations 6 | . 2 . . . 4 Recycling Units 4 | . 3 . . . 1 Scanalyzers . | . . . . . . Garrison Access . | . . . . . . Terminal Hacks 15 | . 8 . 2 . 5 Record 2 | . . . 1 . 1 Robot Analysis 3 | . 3 . . . . Unreport Threat 3 | . 2 . . . 1 Locate Traps 2 | . 1 . . . 1 Recall Reinforcements 2 | . 1 . . . 1 Hauler Manifests 2 | . 1 . . . 1 EX-Prototype ID Bank 1 | . . . 1 . . Fabricator Hacks . | . . . . . . Repair Station Hacks 6 | . 2 . . . 4 Scan Component 3 | . 1 . . . 2 Repair 3 | . 1 . . . 2 Recycling Unit Hacks 3 | . 2 . . . 1 Retrieve Components 3 | . 2 . . . 1 Scanalyzer . | . . . . . . Garrison Access Hacks . | . . . . . . Unauthorized Hacks 6 | . 4 . . . 2 Terminals 5 | . 3 . . . 2 Track 3 | . 3 . . . . Botnet 1 | . . . . . 1 Operators 1 | . . . . . 1 Fabricators . | . . . . . . Repair Stations . | . . . . . . Recycling Units 1 | . 1 . . . . Tunnel 1 | . 1 . . . . Scanalyzers . | . . . . . . Garrison Access . | . . . . . . Data Cores Recovered . | . . . . . . Used . | . . . . . . Hacking Detections 11 | . 7 . . . 4 Full Trace Events . | . . . . . . Feedback Events . | . . . . . . Feedback Blocked . | . . . . . . Robot Schematics Acquired . | . . . . . . Robots Built . | . . . . . . Matter . | . . . . . . Time . | . . . . . . Total Robot Build Rating . | . . . . . . Part Schematics Acquired . | . . . . . . Parts Built . | . . . . . . Matter . | . . . . . . Time . | . . . . . . Total Part Build Rating . | . . . . . . Parts Repaired 3 | . 1 . . . 2 Time 90 | . 32 . . . 58 Parts Recycled . | . . . . . . Recycled Matter . | . . . . . . Retrieved Matter . | . . . . . . Retrieved Components 19 | . 9 . . . 10 Parts Scanalyzed . | . . . . . . Part Schematics Acquired . | . . . . . . Parts Damaged . | . . . . . . Bothacking | -11 -10 -10 -10 -9 -8 ------------ Run | Scr Mat Min Exi Min Mat Used RIF Installer . | . . . . . . Robots Hacked . | . . . . . . Non-combat . | . . . . . . Combat . | . . . . . . Robot Hacks Applied . | . . . . . . Relay Couplers Released . | . . . . . . Robots Rewired . | . . . . . . Allies Hacked . | . . . . . . Hacks Repelled . | . . . . . . Allies | -11 -10 -10 -10 -9 -8 -------- Run | Scr Mat Min Exi Min Mat Total Allies . | . . . . . . Largest Group . | . . . . . . Highest-Rated Group . | . . . . . . Highest-Rated Ally . | . . . . . . Total Orders . | . . . . . . Ally Attacks . | . . . . . . Total Damage . | . . . . . . Kills . | . . . . . . Allies Corrupted . | . . . . . . Allies Melted 1 | . . . 1 . . Intel | -11 -10 -10 -10 -9 -8 ------- Run | Scr Mat Min Exi Min Mat Robot Analysis Total 3 | . 3 . . . . Derelict Logs Recovered 1 | . . . . 1 . Drone Launches . | . . . . . . Drone Recoveries . | . . . . . . Exploration | -11 -10 -10 -10 -9 -8 ------------- Run | Scr Mat Min Exi Min Mat Turns Passed 4450 | 13 1073 221 419 415 2309 Spaces Moved 2075 | 9 578 128 255 197 908 Core . | . . . . . . Treads 1896 | . 408 128 255 197 908 Legs 1 | 1 . . . . . Wheels 178 | 8 170 . . . . Hover . | . . . . . . Flight . | . . . . . . Fastest Speed 90 | 90 90 160 160 180 180 Average Speed 166 | 93 139 160 162 180 184 Slowest Speed 190 | 120 160 160 180 180 190 Overloaded Moves . | . . . . . . Propulsion Burnouts . | . . . . . . Robots Hopped . | . . . . . . Cave-ins Triggered . | . . . . . . Exploration Rate (%) 54 | 2 93 43 65 52 69 Regions Visited 5 Branch Regions 3 Pre-discovered Areas 2 | . 1 . 1 . . Known Exits Taken . | . . . . . . Unknown Exits Taken 5 | 1 1 1 1 1 . Scrap Searched 2 | . . . . 2 . Spaces Dug 5 | . . . . . 5 Terrain Destroyed 184 | . . 42 . 54 88 Melee 5 | . . . . . 5 Projectile . | . . . . . . AOE 179 | . . 42 . 54 83 Terrain Rammed . | . . . . . . Walls Destroyed . | . . . . . . Machines Disabled . | . . . . . . Actions | -11 -10 -10 -10 -9 -8 --------- Run | Scr Mat Min Exi Min Mat Total 2793 | 14 774 138 259 242 1366 Wait 451 | . 140 . . 21 290 Move 2070 | 8 577 127 254 196 908 Hop . | . . . . . . Pick Up 40 | . 8 2 3 6 21 Fast Attach 9 | . 3 . 1 . 5 Attach 11 | 2 2 . . 1 6 Detach . | . . . . . . Swap 34 | 1 4 3 . 3 23 Drop 32 | 3 4 1 1 2 21 Fire 133 | . 35 5 . 13 80 Melee 8 | . . . . . 8 Ram 1 | . 1 . . . . Kick . | . . . . . . Crush 4 | . . . . . 4 Escape Stasis . | . . . . . . Rewire . | . . . . . . Trap . | . . . . . . Miscellaneous . | . . . . . . Route ------- -11/Scrapyard -10/Materials (discovered 4 exits: [*Mat x3] / [*Min]) -10/Mines (discovered 2 exits: [*Mat] / *Exi) -10/Exiles -9/Mines -8/Materials (discovered 2 exits: *Fac x2) History --------- Turn | Location | Event 1 | -11/Scrapyard | Discovered new exit (range 2) 14 | -11/Scrapyard | Entered Materials 220 | -10/Materials | Discovered new exit (range 16) 301 | -10/Materials | Discovered new exit (range 12) 311 | -10/Materials | Build established: Mutant 434 | -10/Materials | Repaired Hvy. Assault Rifle 550 | -10/Materials | Discovered new exit (range 14) 930 | -10/Materials | Discovered new exit (range 16) 1087 | -10/Materials | Entered Mines 1165 | -10/Mines | Discovered new exit (range 8) 1301 | -10/Mines | Deemed a non-threat by the Exiles lab entrance 1301 | -10/Mines | Discovered new exit (range 5) 1308 | -10/Mines | Entered Exiles 1347 | -10/Exiles | Met 8R-AWN 1374 | -10/Exiles | Met EX-HEX 1424 | -10/Exiles | Met EX-BIN 1443 | -10/Exiles | Aligned with FarCom system 1444 | -10/Exiles | Given EX-Vault access code 1484 | -10/Exiles | Opened EX-Vault 1497 | -10/Exiles | Found Superbattery 1530 | -10/Exiles | Warned to stay clear of 0b10 Research branches 1550 | -10/Exiles | Exiles lab attacked by MAIN.C 1597 | -10/Exiles | Learned location of Zion (-7) 1707 | -10/Exiles | Discovered new exit (range 14) 1727 | -10/Exiles | Left Exiles lab with Superbattery 1727 | -10/Exiles | Entered Mines 1887 | -9/Mines | Received a Rocket Launcher from a helpful Derelict 1926 | -9/Mines | Learned 2 Materials zone layouts 1982 | -9/Mines | A weapon hastily lodged in a ceiling crevice suddenly fell to the ground 2124 | -9/Mines | Discovered new exit (range 11) 2142 | -9/Mines | Entered Materials 2142 | -8/Materials | Evolved 4 slots: Propulsion x1, Utility x2, Weapon x1 2143 | -8/Materials | Identified exit to Factory 2291 | -8/Materials | Repaired Hvy. Assault Rifle 2319 | -8/Materials | Repaired Lgt. Treads 2685 | -8/Materials | Build established: Hauler-Skirmisher 3432 | -8/Materials | Discovered exit to Factory (range 16) 4451 | -8/Materials | Self-destructed Last Messages --------------- 04400_ Penetrated by Slug. 04404_ Slug penetrates Wall. 04414_ Penetrated by Slug. 04414_ Hrd. Medium Armor Plating destroyed. 04417_ Penetrated by Slug. 04420_ Slammed into H-55 Commando. 04423_ Slug penetrates Wall. 04426_ Acquired 51 matter. 04426_ Lgt. Treads destroyed. 04427_ The unstable cave ceiling collapses. 04427_ K-01 Serf collects debris. 04432_ Hvy. Assault Rifle destroyed. 04433_ The unstable cave ceiling collapses. 04434_ K-01 Serf collects debris. 04438_ Hvy. Assault Rifle destroyed. 04438_ K-01 Serf collects debris. 04443_ H-55 Commando destroyed. 04447_ K-01 Serf collects debris. 04447_ Acquired 42 matter. 04450_ K-01 Serf collects debris. Map ----- +----------------------------------------------------+ | * """ #???????????????????????????????????????? | | #= """ #???????????????????????????????????????? | | # + ??????????????????????????????????????? | | # """ # ????????????????????????????????????? | | # """ #???????????????????????????????????????? | | # """ #???????????????????????????????????????? | | + ????????????????????????????????????????? | | #########????????????????????????????????????????? | | #???????????????????????????????????????????????? | | = ???????+ ""???????????? """ """ #???????????? | | % ????## """ ?????????? #???????????? | | "" ????# ?????????? #???????????? | | """ ????# ????????? #???????????? | | """ ? # ! [####?????##########???????????? | | ### # ## ####??????????????????????? | | | # #k ####???????????????????? | | * ## #???????????????????? | | ##### %[% * # ########????????????? | | #?###+ ! #% # #????????????? | | #????? # " " #!! #????????????? | | #????????### ! " #!/ #????????????? | | #??????????##%[ " #! #????????????? | | #???????????#!!! # ! #????????????? | | #???????????#!= # * # #????????????? | | ###???????????# #####;########+####???????????? | | ??????????????# #??# @ #???????????? | | ############### #### = * < #???????????? | | ^^ ! #???????????? | | ##################+##############+#####??????????? | | ?????????????# #????# #??????????? | | ?????????????#[ #????# ! #??????????? | | ?????????????# #????# #??????????? | | ?????????????# = #????# #??????????? | | ?????????????###########????###########??????????? | | | | | | | | | | | | | | | | | | | | | | | | | | | | | | | | | +----------------------------------------------------+ Best States ------------- Heat Dissipation 31 Coolant Potential 50 Energy Generation 14 Energy Capacity 265 Matter Stores 300 Matter Capacity 300 Sight Range 16 Terrain Scan Density 10 Armor Coverage 225 Evasion (%) 42 Recoil Reduction 3 Item Schematics ----------------- None Robot Schematics ------------------ None Fabricated ------------ Nothing Alien Tech Used ----------------- None Achievements -------------- None Challenges ------------ None Game ------ Seed BackupTerrabombDoomcannon Manual? 0 Play Time 00:59:43 Cumulative 13.1 hours Start 2020.10.23 @ 20:07:35 End 2020.10.24 @ 14:47:03 Sessions 1 Manual Loads 0 Difficulty Rogue Special Mode None Game No. 12 Rogue 12 Adventurer 0 Explorer 0 Win Type - Total 0 Types 0/0/0/0/0/0/0/0/0 Lore% 12 Gallery% 9 Achievement% 14 Wizard Run 0 Options --------- ASCII 1 Keyboard 1 Movement Vi Keybinds 0 Fullscreen 1 Font 16/Terminus Map View 75x55 Tactical HUD 1 Map Filters NONE Filters NONE Steam 1 RUN: f9522f4a-55fc-475d-933a-155fc30907e7